bitfinex/quotes_BTCUSD_20240901
["timestamp","ask_amount","ask_price","bid_price","bid_amount"]
[1725198597568,2.27451872,57974.0,57973.0,0.0008998]
[1725198597794,1.72490272,57974.0,57973.0,0.0008998]
[1725198598035,1.52667628,57974.0,57973.0,0.0008998]
[1725198598490,2.38118028,57974.0,57973.0,0.0008998]
[1725198599617,1.89350428,57974.0,57973.0,0.0008998]
[1725198599851,1.79991628,57974.0,57973.0,0.0008998]
[1725198600330,2.04020992,57974.0,57973.0,0.0008998]
[1725198600549,2.04020992,57974.0,57970.0,0.0001069]
[1725198600550,0.184156,57952.0,57946.0,0.50540786]
[1725198600778,0.87263165,57952.0,57946.0,0.50540786]
[1725198601018,0.87263165,57952.0,57945.0,0.008998]
[1725198601019,0.97263165,57952.0,57949.0,0.02062048]
[1725198601475,0.97263165,57952.0,57931.0,0.345636]
[1725198601476,0.517848,57932.0,57931.0,0.0004]
[1725198601703,0.22575004,57951.0,57902.0,0.07698934]
[1725198601704,0.172687,57908.0,57902.0,0.07698934]
[1725198601931,0.865437,57908.0,57900.0,1.063]
[1725198602202,1.92445273,57908.0,57900.0,1.063]
[1725198602439,0.172708,57901.0,57900.0,1.04923333]
[1725198602666,0.1101,57906.0,57900.0,0.99866777]
[1725198602897,0.2345,57905.0,57900.0,0.99866777]
[1725198603119,0.2345,57905.0,57900.0,0.45552189]
[1725198603120,0.585025,57901.0,57900.0,0.45552189]
[1725198603376,0.585025,57901.0,57893.0,0.008998]
[1725198603377,0.1,57901.0,57893.0,0.008998]
[1725198603597,0.1,57905.0,57893.0,0.008998]
[1725198603598,0.1,57900.0,57893.0,0.008998]
[1725198603818,0.1,57905.0,57900.0,0.00185022]
[1725198603819,0.11270928,57905.0,57900.0,0.00185022]
[1725198604052,0.02709432,57901.0,57900.0,0.00185022]
[1725198604498,0.02709432,57901.0,57900.0,0.51998422]
[1725198604738,0.005,57931.0,57900.0,0.00185022]
[1725198604739,0.17266,57918.0,57900.0,0.00185022]
[1725198604969,0.005,57931.0,57900.0,0.00185022]
[1725198604970,0.345259,57928.0,57900.0,0.00185022]
[1725198605182,0.02709113,57906.0,57902.0,0.34541]
[1725198605415,0.0350259,57927.0,57900.0,0.00185022]
[1725198605652,0.50362186,57934.0,57903.0,0.02645418]
[1725198605887,0.172637,57925.0,57903.0,0.023]
[1725198606082,0.345281,57924.0,57908.0,0.172687]
[1725198606365,0.345281,57924.0,57901.0,0.452414]
[1725198606366,0.0270874,57930.0,57904.0,0.345397]
[1725198606635,0.0270874,57930.0,57908.0,0.005]
[1725198606893,0.35,57972.0,57909.0,0.023]
[1725198606894,0.005,57950.0,57909.0,0.023]
[1725198607131,0.005,57950.0,57911.0,0.005]
[1725198607132,0.280615,57948.0,57911.0,0.005]
[1725198607385,0.02708094,57928.0,57927.0,0.517893]
[1725198607637,0.01,57961.0,57927.0,0.517893]
[1725198607638,0.345046,57964.0,57947.0,0.172571]
[1725198607922,0.000818,57985.0,57931.0,0.005]
[1725198607923,0.172502,57971.0,57931.0,0.005]
[1725198608191,0.01,57981.0,57948.0,0.023]
[1725198608192,0.027077,57960.0,57948.0,0.023]
[1725198608407,0.000818,57985.0,57951.0,0.005]
[1725198608630,0.02706423,57970.0,57952.0,0.03145033]
[1725198608851,0.34516,57945.0,57934.0,0.07650347]
[1725198609065,0.34516,57945.0,57931.0,0.23690463]
[1725198609066,0.345119,57951.0,57938.0,0.50540786]
[1725198609286,0.172562,57951.0,57934.0,0.172608]
[1725198609538,0.0517659,57951.0,57942.0,0.172586]
[1725198609791,0.0517659,57951.0,57931.0,0.1349]
[1725198609792,0.345044,57964.0,57938.0,0.345195]
[1725198610018,0.345044,57964.0,57928.0,0.350254]
[1725198610019,0.005,57954.0,57921.0,0.18350347]
[1725198610251,0.1726,57938.0,57930.0,0.50540786]
[1725198610485,0.01726,57938.0,57930.0,0.50540786]
[1725198610702,0.37222678,57946.0,57915.0,0.345332]
[1725198610703,0.172603,57937.0,57920.0,0.172649]
[1725198610925,0.1,57945.0,57916.0,0.00345302]
[1725198610926,0.34516,57944.0,57916.0,0.00345302]
[1725198611144,0.002,57953.0,57922.0,0.005]
[1725198611372,0.345087,57957.0,57933.0,0.345223]
[1725198611597,0.005,57946.0,57914.0,0.07650347]
[1725198611831,0.172622,57930.0,57929.0,0.50540786]
[1725198612078,0.345161,57944.0,57914.0,0.50540786]
[1725198612343,0.345161,57944.0,57921.0,0.172648]
[1725198612344,0.172602,57937.0,57921.0,0.172648]
[1725198612564,0.1,57936.0,57909.0,0.345363]
[1725198612778,0.1,57936.0,57910.0,0.50540786]
[1725198612994,0.01,57935.0,57911.0,0.345355]
[1725198613216,0.05525213,57953.0,57911.0,0.345355]
[1725198613217,0.172599,57938.0,57924.0,0.172639]
[1725198613437,0.005,57954.0,57911.0,0.00345349]
[1725198613438,0.172605,57936.0,57921.0,0.172646]
[1725198613658,0.1,57943.0,57922.0,0.172645]
[1725198613659,0.172607,57935.0,57922.0,0.172645]
[1725198613879,0.172604,57936.0,57916.0,0.345327]
[1725198614124,0.355177,57942.0,57927.0,0.172629]
[1725198614125,0.01,57942.0,57927.0,0.172629]
[1725198614343,0.0270778,57932.0,57924.0,0.1312]
[1725198614575,0.0270778,57932.0,57928.0,0.172625]
[1725198614789,0.345163,57944.0,57925.0,0.023]
[1725198614790,0.172599,57938.0,57925.0,0.023]
[1725198615020,0.0270776,57931.0,57927.0,0.104]
[1725198615306,0.0270776,57931.0,57930.0,0.517866]
[1725198615520,0.0270776,57931.0,57928.0,0.023]
[1725198615521,0.002,57960.0,57940.0,0.17259]
[1725198615756,0.002,57960.0,57934.0,0.345217]
[1725198615757,0.345084,57957.0,57934.0,0.345217]
[1725198615984,0.01,57977.0,57934.0,0.345217]
[1725198615985,0.4269,57965.0,57940.0,0.1312]
[1725198616212,0.4269,57965.0,57947.0,0.345141]
[1725198616443,0.002,57969.0,57947.0,0.345141]
[1725198616444,0.172509,57968.0,57949.0,0.104]
[1725198616685,0.4289,57969.0,57949.0,0.104]
[1725198616686,0.4269,57969.0,57958.0,0.172538]
[1725198616928,0.4269,57969.0,57953.0,0.345105]
[1725198616929,0.0944403,57969.0,57953.0,0.345105]
[1725198617183,0.0944403,57969.0,57943.0,0.50540786]
[1725198617184,0.002,57967.0,57943.0,0.50540786]
[1725198617447,0.002,57965.0,57944.0,0.023]
[1725198617674,0.002,57965.0,57953.0,0.172553]
[1725198617675,0.172518,57965.0,57953.0,0.172553]
[1725198617903,0.172518,57965.0,57939.0,0.07650347]
[1725198617904,0.345178,57942.0,57931.0,0.07650347]
[1725198618142,0.345178,57942.0,57930.0,0.1312]
[1725198618143,0.000819,57952.0,57930.0,0.1312]
[1725198618384,0.002,57950.0,57930.0,0.1312]
[1725198618603,0.000819,57952.0,57930.0,0.1312]
[1725198619277,0.172582,57944.0,57931.0,0.172617]
[1725198619505,0.172586,57943.0,57927.0,0.345262]
[1725198619758,0.172586,57943.0,57925.0,0.50540786]
[1725198619759,0.50540786,57934.0,57897.0,0.27532432]
[1725198620014,0.533125,57901.0,57898.0,0.50540786]
[1725198620249,0.177708,57901.0,57898.0,0.50540786]
[1725198620501,0.177708,57901.0,57897.0,0.0494]
[1725198620502,0.172708,57901.0,57897.0,0.0494]
[1725198620751,0.01,57905.0,57897.0,0.0494]
[1725198620752,0.005,57904.0,57897.0,0.0494]
[1725198621001,0.1,57912.0,57897.0,0.0494]
[1725198621002,0.01,57911.0,57897.0,0.0494]
[1725198621281,0.005,57909.0,57900.0,0.17546212]
[1725198621504,0.005,57911.0,57900.0,0.00275112]
[1725198621755,0.005,57910.0,57900.0,0.00275112]
[1725198621992,0.345287,57923.0,57900.0,0.00275112]
[1725198621993,0.005,57914.0,57900.0,0.00275112]
[1725198622216,0.005,57918.0,57901.0,0.0034539]
[1725198622717,0.005,57918.0,57900.0,0.00275112]
[1725198622718,0.005,57915.0,57900.0,0.00275112]
[1725198622956,0.005,57919.0,57908.0,0.172687]
[1725198623182,0.005,57919.0,57909.0,0.326882]
[1725198623661,0.005,57918.0,57909.0,0.1542]
[1725198623930,0.005,57923.0,57909.0,0.499565]
[1725198624158,0.005,57923.0,57910.0,0.345362]
[1725198624159,0.015,57923.0,57910.0,0.345362]
[1725198624395,0.105,57925.0,57911.0,0.023]
[1725198624618,0.015,57928.0,57912.0,0.10745327]
[1725198624888,0.005,57925.0,57913.0,0.023]
[1725198625317,0.005,57925.0,57913.0,0.195671]
[1725198625319,0.005,57925.0,57914.0,0.172669]
[1725198625554,0.005,57925.0,57913.0,0.023]
[1725198625803,0.005,57928.0,57915.0,0.023]
[1725198626034,0.005,57928.0,57922.0,0.172643]
[1725198626280,0.005,57935.0,57923.0,0.023]
[1725198626775,0.015,57938.0,57926.0,0.345267]
[1725198627022,0.005,57938.0,57929.0,0.172623]
[1725198627255,0.015,57942.0,57930.0,0.023]
[1725198627481,0.01,57942.0,57933.0,0.172612]
[1725198627754,0.005,57942.0,57934.0,0.127]
[1725198628006,0.345103,57954.0,57934.0,0.127]
[1725198628007,0.015,57960.0,57935.0,0.0472233]
[1725198628260,0.005,57961.0,57949.0,0.172564]
[1725198628494,0.005,57962.0,57951.0,0.172559]
[1725198628733,0.005,57963.0,57951.0,0.6661339]
[1725198628968,0.005,57965.0,57951.0,0.6891339]
[1725198629198,0.005,57961.0,57951.0,0.1542]
[1725198629423,0.01,57963.0,57942.0,0.1312]
[1725198629424,0.005,57953.0,57942.0,0.1312]
[1725198629651,0.345074,57959.0,57934.0,0.104]
[1725198629652,0.005,57944.0,57934.0,0.1049009]
[1725198629893,0.005,57940.0,57934.0,0.1049009]
[1725198630121,0.005,57940.0,57934.0,0.0009009]
[1725198630359,0.005,57939.0,57934.0,0.0009009]
[1725198630590,0.355163,57944.0,57934.0,0.0009009]
[1725198630591,0.177607,57935.0,57934.0,0.0009009]
[1725198631051,0.005,57950.0,57934.0,0.0009009]
[1725198631278,0.005819,57952.0,57944.0,0.172579]
[1725198631503,0.005819,57952.0,57940.0,0.345179]
[1725198631755,0.005819,57952.0,57941.0,0.345177]
[1725198631983,0.000819,57952.0,57945.0,0.1312]
[1725198632226,0.000819,57952.0,57951.0,0.172559]
[1725198632479,0.005819,57952.0,57946.0,0.01662717]
[1725198632698,0.000819,57952.0,57947.0,0.023]
[1725198632915,0.000819,57952.0,57948.0,0.172568]
[1725198633159,0.000819,57952.0,57949.0,0.023]
[1725198633639,0.000819,57952.0,57951.0,0.862797]
[1725198633873,0.000819,57952.0,57951.0,0.885797]
[1725198634104,0.173375,57952.0,57951.0,0.023]
[1725198634351,0.000819,57952.0,57951.0,0.03962717]
[1725198635322,0.000819,57952.0,57951.0,0.21218617]
[1725198635543,0.000819,57952.0,57951.0,0.03962717]
[1725198635772,0.000819,57952.0,57951.0,0.01662717]
[1725198635988,0.000819,57952.0,57941.0,0.345173]
[1725198635989,0.0409103,57952.0,57939.0,0.1113]
[1725198636216,0.005,57951.0,57939.0,0.1113]
[1725198636487,0.005,57951.0,57940.0,0.01662023]
[1725198636748,0.172566,57949.0,57940.0,0.01662023]
[1725198636977,0.177561,57951.0,57941.0,0.172588]
[1725198637222,0.172564,57950.0,57941.0,0.172588]
[1725198637452,0.172564,57950.0,57942.0,0.03962023]
[1725198637698,0.172562,57950.0,57942.0,0.03962023]
[1725198637916,0.2249114,57950.0,57942.0,0.03962023]
[1725198638183,0.172562,57950.0,57942.0,0.03962023]
[1725198638402,0.350932,57952.0,57951.0,0.172559]
[1725198638403,0.000819,57952.0,57951.0,0.172559]
[1725198638637,0.000819,57952.0,57951.0,0.023]
[1725198639098,0.000819,57952.0,57941.0,0.172588]
[1725198639382,0.000819,57952.0,57939.0,0.1113]
[1725198639383,0.5585808,57952.0,57951.0,0.01662269]
[1725198639633,0.34512,57951.0,57942.0,0.023]
[1725198639879,0.172574,57946.0,57940.0,0.023]
[1725198640128,0.345135,57949.0,57940.0,0.023]
[1725198640406,0.005819,57952.0,57940.0,0.023]
[1725198640652,0.172573,57947.0,57940.0,0.023]
[1725198641146,0.172567,57949.0,57940.0,0.023]
[1725198641375,0.000819,57952.0,57941.0,0.0034515]
[1725198641594,0.000819,57952.0,57951.0,0.172559]
[1725198642054,0.000819,57952.0,57951.0,0.328559]
[1725198642943,0.000819,57952.0,57951.0,0.673678]
[1725198643184,0.000819,57952.0,57951.0,1.018797]
[1725198643394,0.000819,57952.0,57951.0,1.4657957]
[1725198643617,0.000819,57952.0,57951.0,0.8868577]
[1725198643835,0.000819,57952.0,57951.0,0.784978]
[1725198644096,0.000819,57952.0,57951.0,0.439859]
[1725198644334,0.000819,57952.0,57951.0,0.784978]
[1725198644800,0.000819,57952.0,57951.0,1.130097]
[1725198645033,0.000819,57952.0,57951.0,1.25971969]
[1725198645276,0.000819,57952.0,57951.0,1.60483869]
[1725198646636,0.000819,57965.0,57951.0,1.60483869]
[1725198646637,0.000819,57965.0,57964.0,0.517561]
[1725198646865,0.000819,57965.0,57964.0,1.129902]
[1725198647200,0.000819,57965.0,57964.0,1.14651322]
[1725198647431,0.000819,57965.0,57964.0,1.26116454]
[1725198647673,0.000819,57965.0,57964.0,1.36116454]
[1725198647904,0.345735,57985.0,57965.0,0.133]
[1725198647905,0.000818,57985.0,57965.0,0.133]
[1725198648133,0.000818,57985.0,57984.0,0.172461]
[1725198648356,0.000818,57985.0,57984.0,0.761683]
[1725198648576,0.000818,57985.0,57984.0,0.82577821]
[1725198648799,0.000818,57985.0,57984.0,1.17070021]
[1725198649478,0.02705027,57998.0,57997.0,0.305422]
[1725198649701,0.50540786,58007.0,57997.0,0.156]
[1725198649932,0.000818,58010.0,57997.0,0.156]
[1725198649933,0.02704697,58004.0,58002.0,0.172406]
[1725198650155,0.02704697,58004.0,58003.0,0.00344774]
[1725198650393,0.02704697,58004.0,58003.0,0.04302479]
[1725198650628,0.000818,58010.0,58003.0,0.21542879]
[1725198650865,0.000818,58010.0,58004.0,0.67174688]
[1725198651089,0.000818,58010.0,58004.0,0.36651547]
[1725198651313,0.172351,58021.0,58005.0,0.344797]
[1725198651538,0.172351,58021.0,58004.0,0.19411447]
[1725198651539,0.1485,58020.0,58009.0,0.172386]
[1725198651791,0.1485,58020.0,58006.0,0.37123414]
[1725198651792,0.172392,58007.0,58006.0,0.03957138]
[1725198652027,0.517177,58007.0,58006.0,0.023]
[1725198652272,0.1485,58020.0,57998.0,0.1113]
[1725198652273,0.172416,57999.0,57998.0,0.1113]
[1725198652486,0.172416,58000.0,57998.0,0.1113]
[1725198652714,0.01,58014.0,57998.0,0.13573]
[1725198652945,0.01,58017.0,57999.0,0.00344778]
[1725198653387,0.005,58022.0,58000.0,0.133]
[1725198653604,0.1485,58022.0,58001.0,0.08120603]
[1725198653828,0.1485,58022.0,57998.0,0.13573]
[1725198653829,0.02704004,58020.0,58007.0,0.135]
[1725198654047,0.51717,58008.0,58007.0,0.135]
[1725198654268,0.01,58018.0,58002.0,0.023]
[1725198654269,0.862022,58003.0,58002.0,0.023]
[1725198654497,0.344806,58004.0,58000.0,0.135]
[1725198654714,0.517231,58001.0,58000.0,0.135]
[1725198654942,0.862052,58001.0,58000.0,0.135]
[1725198655153,0.172437,57992.0,57991.0,0.135]
[1725198655381,0.172437,57992.0,57974.0,0.34498]
[1725198655382,0.005,57999.0,57985.0,0.135]
[1725198655645,0.517365,57986.0,57985.0,0.135]
[1725198655874,0.005,57995.0,57976.0,0.172484]
[1725198656099,0.005,57995.0,57973.0,0.344983]
[1725198656100,0.17245,57988.0,57975.0,0.4755]
[1725198656318,0.172438,57992.0,57981.0,0.172469]
[1725198656546,0.172447,57989.0,57977.0,0.344963]
[1725198657014,0.34486,57995.0,57978.0,0.00344884]
[1725198657275,0.344841,57998.0,57986.0,0.172454]
[1725198657276,0.172427,57996.0,57986.0,0.172454]
[1725198657510,0.172429,57995.0,57986.0,0.172454]
[1725198657730,0.000818,58005.0,57992.0,0.172436]
[1725198657955,0.02704445,58001.0,57993.0,0.02644812]
[1725198658393,0.02704445,58001.0,57993.0,0.023]
[1725198658632,0.02704445,58001.0,57995.0,0.172428]
[1725198658843,0.02704445,58001.0,57996.0,0.33473]
[1725198659052,0.02704445,58001.0,58000.0,0.172413]
[1725198659279,0.02704445,58001.0,58000.0,0.195413]
[1725198659530,0.02704445,58001.0,58000.0,0.023]
[1725198659757,0.02704445,58001.0,57996.0,0.31173]
[1725198659758,0.34483,58000.0,57996.0,0.2577]
[1725198659981,0.37186545,58001.0,58000.0,0.01652666]
[1725198660205,0.37186545,58001.0,57996.0,0.2577]
[1725198660206,0.02704445,58001.0,57996.0,0.2577]
[1725198660429,0.02704445,58001.0,57997.0,0.02921803]
[1725198660653,0.02704445,58001.0,57997.0,0.20163803]
[1725198660875,0.000818,58005.0,57997.0,0.02577]
[1725198661108,0.172413,58000.0,57997.0,0.02577]
[1725198661551,0.172422,57997.0,57996.0,0.2577]
[1725198662038,0.344845,57997.0,57985.0,0.2577]
[1725198662260,0.172435,57993.0,57985.0,0.430157]
[1725198662584,0.172437,57992.0,57986.0,0.0875091]
[1725198662780,0.344863,57994.0,57986.0,0.0875091]
[1725198663021,0.344854,57996.0,57986.0,0.2599631]
[1725198663248,0.344749,58014.0,57987.0,0.0652149]
[1725198663473,0.60540786,58015.0,57987.0,0.0652149]
[1725198663474,0.85014686,58015.0,58004.0,0.307401]
[1725198663730,0.85014686,58015.0,58004.0,0.023]
[1725198663731,0.349762,58011.0,58004.0,0.023]
[1725198663959,0.518013,58005.0,58004.0,0.023]
[1725198664409,0.000818,58005.0,58004.0,0.023]
[1725198664632,0.000818,58005.0,58002.0,0.023]
[1725198664860,0.000818,58005.0,58004.0,0.172401]
[1725198665082,0.000818,58005.0,58004.0,0.54365167]
[1725198665305,0.000818,58005.0,58004.0,0.540204]
[1725198665527,0.000818,58005.0,58004.0,0.885007]
[1725198665757,0.000818,58005.0,58004.0,1.020007]
[1725198665980,0.173216,58005.0,58004.0,0.023]
[1725198666226,0.493125,58034.0,58022.0,0.2577]
[1725198666459,0.35288,58023.0,58022.0,0.135]
[1725198666675,0.517089,58017.0,58016.0,0.021652]
[1725198666897,0.172363,58017.0,58016.0,0.021652]
[1725198667113,0.861815,58017.0,58016.0,0.021652]
[1725198667347,0.517089,58017.0,58016.0,0.021652]
[1725198667594,0.00819,58023.0,58016.0,0.044652]
[1725198667814,0.00819,58023.0,58017.0,0.02644687]
[1725198668036,0.00819,58023.0,58019.0,0.172356]
[1725198668259,0.00819,58023.0,58021.0,0.17235]
[1725198668711,0.00819,58023.0,58022.0,0.02644649]
[1725198668939,0.00819,58023.0,58022.0,0.023]
[1725198669184,0.00819,58023.0,58022.0,0.195348]
[1725198669394,0.00819,58023.0,58022.0,0.26528855]
[1725198669607,0.00819,58023.0,58022.0,0.09294055]
[1725198670050,0.181535,58023.0,58022.0,0.023]
[1725198670288,0.00919,58023.0,58022.0,0.023]
[1725198670531,0.181535,58023.0,58022.0,0.035]
[1725198670748,0.182535,58023.0,58022.0,0.035]
[1725198670976,0.00919,58023.0,58022.0,0.035]
[1725198671229,0.00919,58023.0,58022.0,0.674744]
[1725198671455,0.1,58042.0,58022.0,0.674744]
[1725198671456,0.02703208,58035.0,58028.0,0.172329]
[1725198671676,0.02703208,58035.0,58029.0,0.195327]
[1725198671906,0.344604,58038.0,58029.0,0.023]
[1725198672126,0.344604,58038.0,58024.0,0.34468]
[1725198672127,0.344566,58044.0,58030.0,0.0195332]
[1725198672379,0.344566,58044.0,58031.0,0.023]
[1725198672380,0.17231,58035.0,58031.0,0.023]
[1725198672871,0.17231,58035.0,58028.0,0.023]
[1725198672872,0.17331,58035.0,58028.0,0.195328]
[1725198673097,0.001,58035.0,58029.0,0.0539997]
[1725198673314,0.001,58035.0,58030.0,0.195324]
[1725198673532,0.001,58035.0,58030.0,0.21182528]
[1725198673752,0.172304,58037.0,58030.0,0.21182528]
[1725198673994,0.172299,58039.0,58032.0,0.172318]
[1725198674219,0.172299,58039.0,58033.0,0.023]
[1725198674437,0.172279,58046.0,58035.0,0.1489]
[1725198674657,0.172281,58045.0,58038.0,0.172299]
[1725198674905,0.344554,58046.0,58036.0,0.0519971]
[1725198675129,0.02702617,58045.0,58035.0,0.1489]
[1725198675352,0.02702617,58045.0,58037.0,0.01650128]
[1725198675584,0.02702617,58045.0,58039.0,0.1146]
[1725198675585,0.19930717,58045.0,58039.0,0.1146]
[1725198675809,0.172281,58045.0,58039.0,0.1146]
[1725198676019,0.34455,58047.0,58039.0,0.1146]
[1725198676020,0.172277,58046.0,58040.0,0.023]
[1725198676274,0.001,58046.0,58041.0,0.0309896]
[1725198676522,0.001,58046.0,58043.0,0.172284]
[1725198676751,0.001,58046.0,58044.0,0.023]
[1725198676975,0.344572,58043.0,58039.0,0.004]
[1725198677234,0.344572,58043.0,58040.0,0.023]
[1725198677235,0.172293,58041.0,58040.0,0.023]
[1725198677497,0.001,58045.0,58040.0,0.023]
[1725198677746,0.001,58045.0,58044.0,0.172283]
[1725198678005,0.001,58045.0,58044.0,0.19872819]
[1725198678494,0.001,58045.0,58044.0,0.88786019]
[1725198678786,0.001,58045.0,58044.0,1.24114621]
[1725198678991,0.000818,58055.0,58045.0,0.34456]
[1725198679211,0.000818,58055.0,58049.0,0.86134]
[1725198679427,0.000818,58055.0,58049.0,0.516804]
[1725198679646,0.000818,58055.0,58049.0,1.377776]
[1725198679861,0.000818,58055.0,58049.0,1.15594401]
[1725198680319,0.00818,58058.0,58049.0,1.15594401]
[1725198680320,0.00818,58058.0,58057.0,0.516733]
[1725198680539,0.00818,58058.0,58057.0,1.495211]
[1725198680765,0.00818,58058.0,58057.0,2.03699702]
[1725198680993,0.00818,58064.0,58063.0,0.438726]
[1725198681212,0.00818,58064.0,58063.0,1.227632]
[1725198681433,0.0114327,58089.0,58072.0,0.5186]
[1725198681662,0.0114327,58089.0,58072.0,1.4563]
[1725198681877,0.0114327,58089.0,58072.0,1.5719]
[1725198682096,0.0114327,58089.0,58072.0,1.5699]
[1725198682315,0.0114327,58089.0,58072.0,1.5719]
[1725198682524,0.0114327,58089.0,58072.0,1.69219702]
[1725198683209,0.3557337,58089.0,58072.0,1.00339702]
[1725198683421,0.3557337,58089.0,58072.0,1.00239702]
[1725198683422,0.17216,58086.0,58072.0,1.00239702]
[1725198683654,0.0114327,58089.0,58088.0,3.409]
[1725198683871,0.0114327,58089.0,58072.0,0.22029702]
[1725198683872,0.00818,58098.0,58097.0,0.172125]
[1725198684090,0.00818,58098.0,58097.0,0.780876]
[1725198684305,0.00818,58098.0,58097.0,0.3425876]
[1725198684513,0.00818,58098.0,58097.0,0.5147126]
[1725198684726,0.00818,58098.0,58097.0,0.3425876]
[1725198684936,0.00818,58098.0,58097.0,0.3655876]
[1725198685157,0.00818,58098.0,58097.0,0.8819636]
[1725198685559,0.00818,58098.0,58097.0,1.2262146]
[1725198685810,0.00818,58098.0,58097.0,1.2342146]
[1725198685811,0.00918,58098.0,58097.0,1.2342146]
[1725198686026,0.00918,58098.0,58097.0,1.2262146]
[1725198686247,0.0004,58099.0,58098.0,0.64910043]
[1725198686488,0.0004,58099.0,58098.0,1.16308626]
[1725198686719,0.0004,58099.0,58098.0,2.15823126]
[1725198686930,0.0004,58099.0,58098.0,2.11149043]
[1725198687145,0.0004,58099.0,58098.0,2.23209043]
[1725198687376,0.0004,58119.0,58118.0,1.126817]
[1725198687595,0.0004,58119.0,58118.0,1.5490316]
[1725198688055,0.0004,58119.0,58118.0,1.5470316]
[1725198688273,0.0004,58119.0,58118.0,1.5490316]
[1725198688499,0.0004,58119.0,58118.0,1.6720316]
[1725198688954,0.0004,58119.0,58118.0,1.3279046]
[1725198689392,0.0004,58119.0,58118.0,1.6720316]
[1725198689656,0.0004,58119.0,58118.0,1.3279046]
[1725198689878,0.0004,58119.0,58118.0,1.01418025]
[1725198690096,0.00818,58132.0,58131.0,0.516075]
[1725198690329,0.00818,58132.0,58131.0,1.4943825]
[1725198690554,0.00818,58132.0,58131.0,1.51070298]
[1725198690778,0.00818,58132.0,58131.0,2.16660298]
[1725198691020,0.50540786,58171.0,58150.0,0.859845]
[1725198691287,0.50540786,58171.0,58150.0,1.969483]
[1725198691533,0.1272,58190.0,58150.0,1.969483]
[1725198691534,0.1222,58190.0,58178.0,0.171886]
[1725198691775,0.465901,58190.0,58175.0,0.1489]
[1725198692020,0.465901,58190.0,58162.0,0.1489]
[1725198692021,0.171901,58173.0,58162.0,0.1489]
[1725198692245,0.0004,58179.0,58166.0,0.50540786]
[1725198692459,0.0004,58179.0,58167.0,0.05054079]
[1725198692673,0.0004,58179.0,58168.0,0.0034377]
[1725198692897,0.0004,58179.0,58167.0,0.023]
[1725198692898,0.516049,58179.0,58178.0,0.014]
[1725198693184,1.482181,58179.0,58178.0,0.014]
[1725198693410,1.825947,58179.0,58178.0,0.014]
[1725198693844,0.859652,58163.0,58162.0,0.014]
[1725198694291,1.492113,58163.0,58162.0,0.014]
[1725198694509,1.143252,58163.0,58162.0,0.014]
[1725198695393,0.1583,58170.0,58162.0,0.014]
[1725198695625,0.17193,58163.0,58162.0,0.014]
[1725198695888,0.1633,58178.0,58162.0,0.014]
[1725198696119,0.1633,58178.0,58163.0,0.04013806]
[1725198696120,0.343803,58173.0,58163.0,0.04013806]
[1725198696346,0.1633,58178.0,58162.0,0.004]
[1725198696347,0.515791,58163.0,58162.0,0.004]
[1725198696575,0.17193,58163.0,58162.0,0.004]
[1725198697013,0.859652,58163.0,58162.0,0.018]
[1725198697239,0.1257,58179.0,58163.0,0.1575]
[1725198697240,0.0004,58179.0,58163.0,0.1575]
[1725198697470,0.171896,58175.0,58168.0,0.171914]
[1725198697701,0.0004,58179.0,58164.0,0.11755]
[1725198697702,0.343775,58178.0,58169.0,0.00343786]
[1725198697947,0.0004,58179.0,58169.0,0.00343786]
[1725198697948,0.0004,58179.0,58171.0,0.171906]
[1725198698180,0.0004,58179.0,58164.0,0.461404]
[1725198698181,0.171924,58165.0,58164.0,0.01755]
[1725198698406,0.0004,58179.0,58165.0,0.023]
[1725198698640,0.0004,58179.0,58166.0,0.34727972]
[1725198698861,0.343772,58178.0,58168.0,0.171914]
[1725198699088,0.0004,58179.0,58169.0,0.0194914]
[1725198699294,0.0004,58179.0,58158.0,0.443886]
[1725198699295,0.343795,58175.0,58162.0,0.014]
[1725198699525,0.171926,58165.0,58162.0,0.0254]
[1725198699759,0.0004,58179.0,58162.0,0.0254]
[1725198699760,0.17193,58163.0,58162.0,0.0254]
[1725198700011,0.984952,58163.0,58162.0,0.014]
[1725198700227,0.984952,58163.0,58145.0,0.1575]
[1725198700228,0.343922,58153.0,58145.0,0.1575]
[1725198700447,0.1253,58163.0,58146.0,0.06629079]
[1725198700448,0.171977,58147.0,58146.0,0.06629079]
[1725198700676,0.171977,58147.0,58136.0,0.1575]
[1725198700677,0.171999,58140.0,58136.0,0.1575]
[1725198700863,0.172001,58140.0,58136.0,0.1575]
[1725198701120,0.1583,58149.0,58133.0,0.123]
[1725198701330,0.1583,58149.0,58131.0,0.0516075]
[1725198701331,0.343999,58140.0,58134.0,0.05186595]
[1725198701548,0.171987,58144.0,58132.0,0.344043]
[1725198701789,0.02697574,58154.0,58131.0,0.0516075]
[1725198701790,0.02697574,58154.0,58153.0,0.17196]
[1725198702008,0.171944,58159.0,58153.0,0.171958]
[1725198702243,0.2836,58163.0,58154.0,0.00343866]
[1725198702244,0.171932,58163.0,58154.0,0.00343866]
[1725198702459,0.171932,58163.0,58147.0,0.123]
[1725198702460,0.864654,58163.0,58162.0,0.014]
[1725198702686,1.208515,58163.0,58162.0,0.014]
[1725198702894,1.203515,58163.0,58162.0,0.014]
[1725198703129,0.515793,58163.0,58162.0,0.014]
[1725198703367,0.343852,58165.0,58147.0,0.50540786]
[1725198703585,0.005,58169.0,58148.0,0.12368639]
[1725198703586,0.171943,58159.0,58148.0,0.12368639]
[1725198703803,0.515862,58155.0,58154.0,0.014]